bitfinex/quotes_SOLUSD_20251208
["timestamp","ask_amount","ask_price","bid_price","bid_amount"]
[1765168784600,8.89,135.12,135.08,0.68]
[1765168785109,0.71,135.11,135.08,0.68]
[1765168785415,0.71,135.11,135.07,25.91234991]
[1765168785619,3.35778328,135.11,135.07,7.40342861]
[1765168785987,3.35778328,135.1,135.07,7.40342861]
[1765168786608,2.64778328,135.1,135.06,24.39283108]
[1765168786813,0.71,135.09,135.06,23.71283108]
[1765168787510,4.85593492,135.09,135.06,16.308864]
[1765168787708,4.85593492,135.09,135.06,23.71286404]
[1765168788713,0.71,135.08,135.01,0.2]
[1765168788915,4.85593492,135.08,135.02,4.82593492]
[1765168789119,0.71,135.08,135.04,7.40474609]
[1765168789616,0.71,135.08,135.04,8.08474609]
[1765168790610,0.71,135.09,135.06,7.40387555]
[1765168790918,8.89,135.09,135.06,7.40387555]
[1765168791818,0.71,135.08,135.05,8.08460265]
[1765168792031,8.18,135.09,135.05,30.74219991]
[1765168792324,8.89,135.09,135.06,0.7]
[1765168792622,8.18,135.09,135.06,0.7]
[1765168792820,8.89,135.09,135.05,30.06219991]
[1765168793018,8.89,135.09,135.06,0.7]
[1765168794127,8.89,135.09,135.06,8.10367268]
[1765168795325,4.14593492,135.1,135.07,0.7]
[1765168795527,0.71,135.09,135.06,7.40367268]
[1765168795816,0.71,135.1,135.06,8.10367268]
[1765168796027,0.71,135.1,135.06,12.2496076]
[1765168796320,8.11209884,135.1,135.06,12.2496076]
[1765168796712,0.71,135.09,135.06,12.2496076]
[1765168797023,0.71,135.09,135.04,12.25065025]
[1765168797332,105.51,135.09,135.05,7.40446736]
[1765168797638,105.51,135.09,135.06,11.54978877]
[1765168797820,105.51,135.09,135.06,12.24978877]
[1765168798718,105.51,135.09,135.06,8.10385385]
[1765168800510,112.91256726,135.09,135.05,12.25049681]
[1765168801317,105.51,135.09,135.06,8.10402114]
[1765168801809,0.71,135.08,135.06,7.40402114]
[1765168802211,104.8,135.09,135.06,7.40402114]
[1765168802212,105.51,135.09,135.06,8.10402114]
[1765168802601,105.51,135.09,135.06,7.40402114]
[1765168803826,105.51,135.09,135.06,8.10402114]
[1765168804526,104.8,135.09,135.08,4.14593492]
[1765168804708,18.4999599,135.14,135.08,4.14593492]
[1765168804709,105.51,135.13,135.08,4.14593492]
[1765168805027,112.91045733,135.13,135.1,4.14593492]
[1765168805281,0.71,135.12,135.09,12.24840734]
[1765168805622,8.2,135.14,135.11,4.14593492]
[1765168805815,8.2,135.14,135.12,4.14593492]
[1765168806138,8.91,135.14,135.11,4.84593492]
[1765168806609,0.66,135.13,135.1,4.14593492]
[1765168806808,0.66,135.13,135.1,12.23779776]
[1765168807642,0.66,135.13,135.11,4.14593492]
[1765168807935,0.66,135.13,135.1,12.23779776]
[1765168808144,8.86,135.14,135.11,4.83593492]
[1765168808432,16.25982763,135.14,135.11,4.14593492]
[1765168808617,0.66,135.13,135.11,4.14593492]
[1765168809339,0.66,135.13,135.1,4.83593492]
[1765168809548,0.66,135.13,135.09,11.54820362]
[1765168809733,0.66,135.13,135.09,12.23820362]
[1765168809934,0.66,135.13,135.1,12.23781206]
[1765168810130,4.14593492,135.11,135.06,4.83593492]
[1765168810329,4.14593492,135.11,135.06,21.14479892]
[1765168810330,12.32593492,135.11,135.06,21.14479892]
[1765168810646,0.66,135.1,135.06,0.69]
[1765168810950,0.66,135.1,135.05,11.55042079]
[1765168811250,8.06222339,135.1,135.05,12.24042079]
[1765168811650,0.66,135.09,135.05,8.09448587]
[1765168811847,0.66,135.09,135.05,8.09456141]
[1765168812051,4.80593492,135.09,135.04,23.71397213]
[1765168812353,4.80593492,135.09,135.0,45.61855875]
[1765168812354,4.14593492,135.07,135.01,5.03593492]
[1765168812532,4.14593492,135.07,135.02,7.40592793]
[1765168812733,0.66,135.06,135.02,7.40592793]
[1765168813127,4.80593492,135.06,135.02,7.40592793]
[1765168813520,4.80593492,135.06,135.01,0.2]
[1765168813521,4.80593492,135.05,135.01,0.2]
[1765168813734,12.98593492,135.05,135.01,0.2]
[1765168813936,0.66,135.04,135.01,0.2]
[1765168814135,0.66,135.04,135.01,8.29659961]
[1765168816139,0.66,135.04,135.01,0.89]
[1765168817456,0.66,135.04,135.01,8.29667184]
[1765168817830,8.06536421,135.04,135.01,0.2]
[1765168818230,0.66,135.03,135.01,0.2]
[1765168819750,112.86458506,135.06,135.02,0.69]
[1765168819959,0.66,135.05,135.02,0.69]
[1765168820143,121.06458506,135.06,135.02,0.69]
[1765168820460,8.86,135.06,135.02,0.69]
[1765168821153,22.65393834,135.08,135.02,0.69]
[1765168821154,16.26309149,135.08,135.03,4.14593492]
[1765168821542,16.26309149,135.08,135.04,0.72]
[1765168821734,8.06375355,135.07,135.03,0.72]
[1765168822141,0.66,135.06,135.03,0.72]
[1765168823136,0.66,135.06,135.03,8.12568198]
[1765168823453,8.06375355,135.07,135.03,12.2716169]
[1765168825852,7.40375355,135.07,135.03,12.2716169]
[1765168826160,7.40375355,135.07,135.02,11.55223199]
[1765168826348,0.66,135.06,135.02,12.27223199]
[1765168826680,0.66,135.06,135.02,8.12629707]
[1765168827270,0.66,135.06,135.03,8.12574308]
[1765168827964,0.66,135.06,135.02,12.27208259]
[1765168828166,7.40466493,135.05,135.01,0.2]
[1765168828358,19.75059985,135.05,135.01,0.2]
[1765168828555,0.66,135.04,135.01,0.2]
[1765168829364,8.06522216,135.04,135.01,0.2]
[1765168830361,8.06609648,135.03,135.01,0.2]
[1765168830565,12.2120314,135.03,135.01,0.2]
[1765168830746,13.00593492,135.02,135.01,0.2]
[1765168830949,8.86,135.02,135.01,0.2]
[1765168831737,8.2,135.02,135.01,0.2]
[1765168831942,8.86,135.02,135.01,0.2]
[1765168833074,16.26631017,135.02,135.01,0.2]
[1765168833247,20.41224509,135.02,135.01,0.2]
[1765168833945,16.26631017,135.02,135.01,0.2]
[1765168834171,20.41224509,135.02,135.01,0.2]
[1765168834656,8.86,135.02,135.01,0.2]
[1765168835340,16.26631017,135.02,135.01,0.2]
[1765168836171,8.2,135.03,135.01,0.2]
[1765168836341,0.66,135.05,135.01,8.32679462]
[1765168836541,105.46,135.06,135.02,4.14593492]
[1765168836786,8.2,135.06,135.02,4.86593492]
[1765168837075,8.86,135.06,135.03,0.72]
[1765168837243,19.75017148,135.06,135.01,0.2]
[1765168837448,4.80593492,135.05,135.01,0.2]
[1765168837966,0.66,135.05,135.01,0.92]
[1765168838271,0.66,135.05,135.01,8.32680079]
[1765168838751,4.80593492,135.05,135.01,0.2]
[1765168839283,4.80593492,135.05,135.01,0.92]
[1765168839481,8.06475065,135.05,135.01,8.32650602]
[1765168840580,0.66,135.04,135.01,8.32650602]
[1765168840960,0.66,135.05,135.01,8.32650602]
[1765168841860,4.80593492,135.05,135.01,0.2]
[1765168842076,0.66,135.05,135.02,0.72]
[1765168842277,0.66,135.04,135.01,8.32684077]
[1765168842832,0.66,135.04,135.01,0.2]
[1765168842833,4.80593492,135.04,135.01,0.2]
[1765168843102,11.5516966,135.03,135.01,0.2]
[1765168843287,12.2116966,135.03,135.01,0.2]
[1765168843457,0.66,135.02,135.01,0.2]
[1765168844181,12.2116966,135.03,135.01,0.2]
[1765168844389,11.5516966,135.03,135.01,0.2]
[1765168844561,12.2116966,135.03,135.01,0.2]
[1765168844888,0.66,135.02,135.01,0.2]
[1765168846171,8.06631017,135.02,135.01,0.2]
[1765168848199,114.86239788,135.03,135.01,0.2]
[1765168848506,0.66,135.02,135.01,0.2]
[1765168848680,120.40595088,135.03,135.01,0.2]
[1765168848877,121.12595088,135.03,135.01,0.2]
[1765168849476,0.72,135.02,135.01,0.2]
[1765168850888,8.12631017,135.02,135.01,0.2]
[1765168851700,10.78275717,135.02,135.01,0.2]
[1765168854801,19.59270209,135.02,135.01,0.2]
[1765168858105,18.92234419,135.03,135.01,0.2]
[1765168859808,3.316447,135.02,135.01,0.2]
[1765168860805,12.12639192,135.02,135.01,0.2]
[1765168861501,12.12639192,135.02,135.0,0.2]
[1765168861502,19.53270209,135.02,135.0,0.2]
[1765168861708,20.32639192,135.01,135.0,0.2]
[1765168863707,44.04211467,135.01,135.0,1e-08]
[1765168868610,35.84211467,135.01,135.0,1e-08]
[1765168868817,44.04211467,135.01,135.0,1e-08]
[1765168875513,41.38566767,135.01,135.0,1e-08]
[1765168875717,44.04211467,135.01,135.0,1e-08]
[1765168877824,40.72566767,135.01,135.0,1e-08]
[1765168878129,44.04211467,135.01,135.0,1e-08]
[1765168878907,35.84211467,135.01,135.0,1e-08]
[1765168879229,44.04211467,135.01,135.0,1e-08]
[1765168880024,35.84211467,135.01,135.0,1e-08]
[1765168880210,44.04211467,135.01,135.0,1e-08]
[1765168880730,35.84211467,135.01,135.0,1e-08]
[1765168880904,35.85211467,135.01,135.0,1e-08]
[1765168881101,35.18211467,135.01,135.0,1e-08]
[1765168881323,43.38211467,135.01,135.0,1e-08]
[1765168881529,44.05211467,135.01,135.0,1e-08]
[1765168881730,43.38211467,135.01,135.0,1e-08]
[1765168881932,44.05211467,135.01,135.0,1e-08]
[1765168882531,15.60685875,135.01,135.0,0.72000001]
[1765168882730,18.26330575,135.01,135.0,0.72000001]
[1765168883123,15.60685875,135.01,135.0,0.72000001]
[1765168887731,27.74325067,135.01,135.0,1e-08]
[1765168888238,44.05211467,135.01,135.0,1e-08]
[1765168888537,27.74325067,135.01,135.0,1e-08]
[1765168891238,27.74325067,135.01,135.0,1e-08]
[1765168892319,30.71071978,135.01,135.0,1e-08]
[1765168895142,27.74325067,135.01,135.0,1e-08]
[1765168895643,43.38211467,135.01,135.0,1e-08]
[1765168895852,27.07325067,135.01,135.0,0.72000001]
[1765168896058,10.06330575,135.01,135.0,0.72000001]
[1765168896225,15.60685875,135.01,135.0,0.72000001]
[1765168897924,18.26330575,135.01,135.0,0.72000001]
[1765168900745,15.60685875,135.01,135.0,0.72000001]
[1765168900941,18.26330575,135.01,135.0,0.72000001]
[1765168901547,18.26330575,135.01,135.0,1e-08]
[1765168901548,27.74325067,135.01,135.0,1e-08]
[1765168901934,27.07325067,135.01,135.0,1e-08]
[1765168902131,24.41680367,135.01,135.0,1e-08]
[1765168902335,27.07325067,135.01,135.0,1e-08]
[1765168906051,8.80994492,134.97,134.95,0.2]
[1765168906231,10.856447,134.96,134.95,0.2]
[1765168906429,10.856447,134.96,134.95,0.92]
[1765168907552,18.26604984,134.96,134.95,0.92]
[1765168908854,19.76499506,134.96,134.95,0.2]
[1765168909048,28.57493998,134.96,134.95,0.2]
[1765168909430,19.76499506,134.96,134.95,0.92]
[1765168913730,11.56499506,134.96,134.95,0.92]
[1765168913936,124.56461725,134.97,134.95,0.92]
[1765168914136,113.0,134.97,134.96,0.67]
[1765168914337,18.51890035,135.0,134.96,0.67]
[1765168914338,11.56283747,135.0,134.96,0.67]
[1765168914534,15.60744525,135.0,134.96,0.67]
[1765168914750,19.76283747,135.0,134.96,0.67]
[1765168915261,15.60752066,135.0,134.96,8.07946683]
[1765168915736,15.60752066,135.0,134.97,0.67]
[1765168919054,19.76291288,135.0,134.97,0.67]
[1765168919247,4.15539222,134.99,134.97,0.67]
[1765168919447,8.2,134.98,134.97,0.67]
[1765168919768,15.60850496,134.98,134.97,0.67]
[1765168921463,15.60790505,135.0,134.97,0.67]
[1765168921858,8.2,135.0,134.97,8.07904718]
[1765168922245,8.2,135.0,134.98,0.68]
[1765168923064,15.60756264,135.0,134.98,0.68]
[1765168924460,4.84539222,134.99,134.95,0.88]
[1765168924661,4.15539222,134.96,134.95,0.2]
[1765168924863,21.16533714,134.96,134.95,0.2]
[1765168925066,20.46425622,134.97,134.95,0.88]
[1765168925269,8.2,134.96,134.95,0.88]
[1765168925569,8.2,134.96,134.95,0.2]
[1765168925966,8.2,134.96,134.95,0.88]
[1765168926464,8.2,134.96,134.95,8.2901519]
[1765168926670,8.2,134.98,134.95,8.2901519]
[1765168926872,7.40757645,135.0,134.96,0.68]
[1765168927045,19.76296867,135.0,134.96,0.68]
[1765168927256,15.60757645,135.0,134.96,0.68]
[1765168928262,8.2,135.0,134.96,4.83539222]
[1765168928570,8.2,135.0,134.96,8.08915226]
[1765168928762,8.2,135.0,134.97,0.68]
[1765168931053,15.60751274,135.0,134.97,0.68]
[1765168931275,19.76290496,135.0,134.97,0.68]
[1765168931762,19.76290496,135.0,134.96,0.68]
[1765168931763,4.84539222,134.99,134.96,0.68]
[1765168931963,4.15539222,134.99,134.96,0.68]
[1765168932567,4.84539222,134.98,134.95,0.2]
[1765168932769,8.2,134.97,134.95,0.88]
[1765168933786,8.2,134.99,134.96,0.68]
[1765168934376,12.35539222,134.99,134.96,0.68]
[1765168934791,8.2,134.99,134.96,0.68]
[1765168935278,8.2,134.99,134.96,4.83539222]
[1765168935775,8.2,134.99,134.97,0.68]
[1765168936681,8.2,134.99,134.97,8.08888423]
[1765168936978,8.2,134.99,134.97,0.68]
[1765168937182,8.2,134.99,134.98,0.68]
[1765168937676,15.6081418,134.99,134.96,0.68]
[1765168937867,16.2981418,134.99,134.96,0.68]
[1765168938182,4.15539222,134.97,134.95,0.2]
[1765168938372,8.2,134.96,134.95,0.2]
[1765168938772,15.60960284,134.96,134.95,0.2]
[1765168939073,19.76499506,134.96,134.95,0.2]
[1765168939289,8.2,134.96,134.95,0.88]
[1765168943074,12.24403537,134.98,134.95,0.88]
[1765168943297,8.2,134.96,134.95,0.88]
[1765168946098,11.5634459,134.99,134.95,0.88]
[1765168946276,8.2,134.98,134.96,0.68]
[1765168946905,0.68,135.0,134.96,0.68]
[1765168947056,7.40758328,135.0,134.96,0.68]
[1765168947261,8.2,134.99,134.96,0.68]
[1765168948765,8.2,134.99,134.96,8.08946465]
[1765168948974,8.2,134.99,134.97,0.68]
[1765168955590,8.2,134.99,134.97,12.24436726]
[1765168956098,7.40731854,135.01,134.98,0.68]
[1765168956099,15.60731854,135.01,134.98,0.68]
[1765168956596,20.46425622,134.99,134.96,0.68]
[1765168956773,8.2,134.98,134.96,0.68]
[1765168957793,15.60887108,134.98,134.96,0.68]
[1765168957978,19.7642633,134.98,134.96,0.68]
[1765168958379,8.2,134.98,134.96,0.68]
[1765168958586,15.60863474,134.98,134.96,0.68]
[1765168959986,8.2,134.98,134.96,0.68]
[1765168960186,15.60854468,134.98,134.96,0.68]
[1765168961795,8.2,134.98,134.96,0.68]
[1765168962180,8.2,134.98,134.95,0.2]
[1765168962181,4.83539222,134.97,134.95,0.2]
[1765168962399,4.15539222,134.96,134.95,0.2]
[1765168963181,4.83539222,134.96,134.95,0.2]
[1765168964089,12.24499506,134.96,134.95,0.2]
[1765168965097,11.56499506,134.96,134.95,0.2]
[1765168966081,8.2,134.96,134.95,0.88]
[1765168966588,8.2,134.96,134.95,0.2]
[1765168966802,15.60960284,134.96,134.95,0.2]
[1765168967102,8.2,134.97,134.95,0.88]
[1765168967516,8.2,134.97,134.96,0.68]
[1765168968187,15.60905386,134.97,134.96,0.68]
[1765168969785,8.2,134.97,134.96,0.68]
[1765168970284,8.2,134.97,134.95,0.88]
[1765168970498,18.94744413,134.97,134.95,0.2]
[1765168971504,18.26744413,134.97,134.95,0.2]
[1765168971704,18.26744413,134.97,134.95,0.88]
[1765168972301,10.85824457,134.97,134.95,0.88]
[1765168972505,18.26733851,134.97,134.95,0.88]
[1765168974105,15.60909394,134.97,134.95,0.88]
[1765168974609,8.2,134.97,134.95,0.88]
[1765168975104,8.2,134.97,134.95,0.2]
[1765168975412,8.2,134.97,134.96,0.68]
[1765168975914,8.2,134.97,134.95,0.2]
[1765168976092,8.2,134.97,134.95,0.88]
[1765168981097,8.2,134.97,134.96,0.69]
[1765168983209,15.60907472,134.97,134.95,0.2]
[1765168983509,15.60907472,134.97,134.95,0.89]
[1765168984716,8.2,134.97,134.95,0.89]
[1765168986016,18.26738843,134.97,134.95,0.89]
[1765168986319,18.94738843,134.97,134.95,0.2]
[1765168988314,18.94738843,134.97,134.95,0.89]
[1765168991621,18.94738843,134.97,134.95,0.2]
[1765168992602,18.94738843,134.97,134.95,0.89]
[1765168992803,11.53824457,134.97,134.95,0.89]
[1765168993029,10.85824457,134.97,134.95,0.89]
[1765168993204,18.26732681,134.97,134.95,0.89]
[1765168994823,15.60908224,134.97,134.95,0.89]
[1765168996021,18.26732681,134.97,134.95,0.89]
[1765168997418,8.2,134.97,134.95,0.89]
[1765168997728,8.2,134.97,134.96,0.69]
[1765168998701,112.20700045,135.01,134.96,10.7573505]
[1765168999011,8.2,135.0,134.96,10.7573505]
[1765168999221,8.2,135.0,134.97,0.69]
[1765169003331,8.2,135.0,134.97,8.09896934]
[1765169003630,8.2,135.0,134.98,0.7]
[1765169006535,8.18,135.02,134.98,8.10818541]
[1765169006835,8.18,135.02,134.98,10.76642998]
[1765169007022,8.18,135.02,134.99,0.7]
[1765169007625,8.18,135.02,134.99,8.10774832]
[1765169008137,10.06721391,135.06,135.0,0.7]
[1765169008434,8.18,135.05,135.0,0.7]
[1765169008623,16.23472716,135.05,135.0,0.7]
[1765169008819,2.65824457,135.03,134.98,7.40841194]
[1765169009034,2.65824457,135.03,135.0,0.7]
[1765169009336,0.65,135.02,134.99,0.7]
[1765169009712,8.05661334,135.02,134.99,0.7]
[1765169010524,7.40661334,135.02,134.99,0.7]
[1765169010937,15.58661334,135.02,134.99,0.7]
[1765169012939,15.58661334,135.02,134.98,7.40842154]
[1765169013142,8.05690671,135.01,134.98,0.7]
[1765169013548,8.05690671,135.01,134.96,8.10939428]
[1765169013549,3.30824457,135.0,134.96,8.10939428]
[1765169013749,8.18,134.99,134.96,8.10939428]
[1765169013917,8.83,134.99,134.96,8.10939428]
[1765169014223,3.30824457,134.98,134.95,0.2]
[1765169014428,3.30824457,134.98,134.95,0.9]
[1765169015849,18.24664887,134.99,134.96,0.7]
[1765169016148,18.89664887,134.99,134.96,0.7]
[1765169016447,18.89664887,134.99,134.95,7.6100312]
[1765169016448,18.89664887,134.99,134.95,8.3100312]
[1765169016744,18.89664887,134.99,134.95,7.6100312]
[1765169016948,18.89664887,134.99,134.96,0.7]
[1765169017248,8.18,134.99,134.96,8.10942926]
[1765169017447,7.40674508,135.02,134.97,2.65824457]
[1765169017747,2.65824457,135.01,134.97,0.7]
[1765169017925,3.30824457,135.01,134.97,0.7]
[1765169018245,0.65,135.0,134.97,0.7]
[1765169018545,2.65824457,135.01,134.97,0.7]
[1765169018732,3.30824457,135.01,134.97,0.7]
[1765169019626,3.30824457,135.01,134.97,8.10865794]
[1765169019849,0.65,135.01,134.97,8.10865794]
[1765169020034,0.65,135.01,134.98,0.7]
[1765169021954,10.71521458,135.01,134.98,0.7]
[1765169024941,10.06521458,135.01,134.96,7.40939527]
[1765169025135,3.30824457,135.0,134.96,8.10939527]
[1765169025525,2.65824457,135.0,134.96,8.10939527]
[1765169025930,3.30824457,134.99,134.96,8.10939527]
[1765169026159,3.30824457,134.99,134.95,0.2]
[1765169026160,11.48824457,134.99,134.95,0.2]
[1765169026345,11.48824457,134.99,134.96,0.7]
[1765169026654,8.18,134.99,134.96,8.1092074]
[1765169026864,10.83824457,134.99,134.96,0.7]
[1765169027164,0.65,134.98,134.95,0.9]
[1765169028257,3.30824457,134.98,134.95,0.9]
[1765169028862,12.21162134,134.98,134.95,0.9]
[1765169030353,11.56162134,134.98,134.95,0.2]
[1765169030559,0.65,134.97,134.95,0.2]
[1765169033172,4.80305543,134.97,134.95,0.2]
[1765169033464,0.65,134.97,134.95,7.61012294]
[1765169033664,4.15305543,134.98,134.95,8.33012294]
[1765169033875,0.69,134.98,134.95,8.33012294]
[1765169034956,0.69,134.98,134.95,7.61012294]
[1765169035151,0.69,134.98,134.95,8.33012294]
[1765169037156,4.84305543,134.98,134.95,8.33012294]
[1765169038151,0.69,134.98,134.95,8.33012294]
[1765169041057,0.69,134.98,134.95,8.31012294]
[1765169041372,4.15305543,134.97,134.95,7.61012294]
[1765169041756,0.67,134.96,134.95,7.61012294]
[1765169042676,4.82305543,134.97,134.95,7.61012294]
[1765169042880,4.82305543,134.97,134.95,7.78871294]
[1765169043382,4.15305543,134.97,134.95,7.78871294]
[1765169043555,4.82305543,134.97,134.95,7.78871294]
[1765169043878,4.15305543,134.96,134.95,0.37859]
[1765169044088,4.82305543,134.96,134.95,0.37859]
[1765169044664,4.15305543,134.97,134.95,0.37859]
[1765169044862,4.82305543,134.96,134.95,0.37859]
[1765169045261,13.00305543,134.96,134.95,0.37859]
[1765169047089,29.22260319,134.96,134.95,0.37859]
[1765169049500,33.37565862,134.96,134.95,0.37859]
[1765169049993,49.68452262,134.96,134.95,0.37859]
[1765169054474,49.68452262,134.96,134.93,0.2]
[1765169054475,25.11880892,134.94,134.93,0.2]
[1765169054799,29.27186435,134.94,134.93,0.2]
[1765169054989,29.94186435,134.94,134.93,0.2]
[1765169056395,37.3525654,134.94,134.93,0.2]
[1765169057177,8.18,134.95,134.93,0.9]
[1765169057798,8.18,134.95,134.94,0.7]
[1765169060006,11.56282762,134.96,134.94,0.7]
[1765169060177,20.46191943,134.98,134.94,0.7]
[1765169060374,8.18,134.97,134.94,8.11068653]
[1765169060997,8.18,134.97,134.95,0.67]
[1765169065319,13.01305543,134.97,134.95,0.67]
[1765169065483,12.33305543,134.97,134.95,0.67]
[1765169065692,8.18,134.97,134.95,0.67]
[1765169068110,15.58912695,134.97,134.95,0.67]
[1765169073518,8.18,134.97,134.95,0.67]
[1765169074105,12.24174312,134.98,134.95,0.67]
[1765169074292,8.18,134.97,134.95,0.67]
[1765169074633,8.18,134.96,134.95,0.67]
[1765169074806,12.24174312,134.98,134.95,0.67]
[1765169075117,8.18,134.97,134.95,0.67]
[1765169075419,8.18,134.96,134.95,0.67]
[1765169077105,8.86,134.96,134.93,11.76428061]
[1765169077313,16.26960284,134.96,134.93,0.87]
[1765169077512,16.26960284,134.96,134.94,0.67]
[1765169078023,15.58960284,134.96,134.94,0.67]
[1765169078720,16.26960284,134.96,134.94,0.67]
[1765169079527,16.26960284,134.96,134.93,0.2]
[1765169079528,20.42265827,134.96,134.93,0.2]
[1765169079726,20.42265827,134.96,134.93,0.87]
[1765169081414,4.15305543,134.94,134.93,0.2]
[1765169081601,19.74375648,134.94,134.93,0.2]
[1765169081804,20.42375648,134.94,134.93,0.2]
[1765169083243,4.15305543,134.94,134.93,0.87]
[1765169083410,8.18,134.94,134.93,0.87]
[1765169086940,15.59070105,134.94,134.93,0.2]
[1765169087232,15.59070105,134.94,134.93,0.87]
[1765169088230,8.18,134.94,134.93,0.87]
[1765169090940,8.18,134.94,134.93,0.2]
[1765169091245,8.18,134.94,134.93,0.92]
[1765169094835,18.9097341,134.94,134.93,0.2]
[1765169097730,15.59070105,134.94,134.93,0.2]
[1765169099837,21.89386845,134.96,134.93,0.91]
[1765169099838,7.4101519,134.95,134.93,0.91]
[1765169100039,8.18,134.94,134.93,0.91]
[1765169100217,8.18,134.94,134.93,0.2]
[1765169100417,8.18,134.95,134.93,0.2]
[1765169100645,117.53089678,134.98,134.93,2.85903305]
[1765169100840,8.18,134.97,134.94,3.36903305]
[1765169101029,8.18,134.97,134.94,0.71]
[1765169101232,8.18,134.97,134.95,0.71]
[1765169102045,25.11880892,134.99,134.95,0.71]
[1765169102046,7.40814635,134.99,134.95,0.71]
[1765169102222,7.40685875,135.01,134.96,2.65903305]
[1765169102419,7.40576168,135.03,134.98,2.65903305]
[1765169102636,7.40576168,135.03,134.99,2.65903305]
[1765169102637,8.18,135.02,134.99,2.65903305]
[1765169103027,8.18,135.02,135.0,0.71]
[1765169103349,8.89,135.02,134.99,0.71]
[1765169103860,11.54903305,135.02,134.99,0.71]
[1765169104554,7.40685875,135.01,134.98,0.71]
[1765169104741,10.83903305,135.0,134.96,0.71]
[1765169104941,2.65903305,134.99,134.95,0.71]
[1765169105124,10.83903305,134.98,134.95,0.71]
[1765169105451,11.54903305,134.98,134.95,0.71]
[1765169106045,8.18,134.98,134.95,0.71]
[1765169106252,8.18,134.98,134.96,7.40951489]
[1765169106426,26.3747558,135.01,134.96,10.06854794]
[1765169106619,8.18,135.0,134.97,0.71]
[1765169108527,8.18,135.0,134.97,8.11867901]
[1765169108728,8.18,135.0,134.98,0.71]
[1765169109048,15.58759667,135.0,134.95,21.18336056]
[1765169109255,15.58759667,135.0,134.98,0.71]
[1765169109433,8.18,135.0,134.98,0.71]
[1765169109635,3.36903305,135.05,134.99,2.65903305]
[1765169109838,8.18,135.04,134.99,2.65903305]
[1765169110034,8.18,135.04,135.0,0.71]
[1765169110567,8.18,135.04,134.97,25.93151077]
[1765169110568,2.65903305,135.03,134.97,18.52263465]
[1765169110850,2.65903305,135.01,134.98,0.71]
[1765169111028,10.83903305,135.01,134.96,8.11923698]
[1765169111230,11.54903305,135.01,134.97,0.71]
[1765169111744,10.83903305,135.01,134.97,0.71]
[1765169111945,0.71,135.0,134.97,0.71]
[1765169112255,3.36903305,135.0,134.95,8.11998325]
[1765169112432,3.36903305,135.0,134.96,0.71]
[1765169112637,8.1181377,134.99,134.96,0.71]
[1765169113038,7.4081377,134.99,134.96,0.71]
[1765169113560,0.71,134.98,134.95,7.40998325]
[1765169113737,0.71,134.98,134.95,0.71]
[1765169114155,10.77717075,134.99,134.95,0.71]
[1765169114763,10.77717075,134.99,134.95,8.1200915]
[1765169115365,8.1181377,134.99,134.95,8.1200915]
[1765169115535,8.1181377,134.99,134.96,0.71]
[1765169117459,10.77657307,135.0,134.96,0.71]
[1765169119069,10.77717282,134.99,134.96,0.71]
[1765169119362,10.77717282,134.99,134.94,0.71]
[1765169119363,10.83903305,134.98,134.94,0.71]
[1765169119570,11.54903305,134.98,134.94,0.71]
[1765169120144,2.65903305,134.99,134.94,0.71]
[1765169120355,8.18,134.99,134.94,3.36903305]
[1765169120592,8.18,134.99,134.95,7.41000554]